fUST/lending_fUST_20251119
["ID","MTS","AMOUNT","RATE_DAILY","PERIOD"]
[394358793,1763488432170,-593.03,0.00017998,2]
[394358794,1763488432199,-593.03,0.00017998,2]
[394358795,1763488432227,-500.0,0.00018609,2]
[394358796,1763488432258,-500.0,0.00018609,2]
[394358797,1763488434609,-593.03,0.00018763,2]
[394358798,1763488434637,-206.56325989,0.000188,2]
[394358799,1763488434667,-593.03,0.00018967,2]
[394358800,1763488434698,-300.0,0.0001898,2]
[394358801,1763488434729,-300.0,0.0001898,2]
[394358802,1763488434759,-300.0,0.0001898,2]
[394358803,1763488434788,-300.0,0.0001898,2]
[394358804,1763488434819,-300.0,0.0001898,2]
[394358805,1763488434848,-300.0,0.0001898,2]
[394358806,1763488434877,-300.0,0.0001898,2]
[394358807,1763488434906,-300.0,0.0001898,2]
[394358808,1763488434935,-300.0,0.0001898,2]
[394358809,1763488434965,-300.0,0.0001898,2]
[394358810,1763488434995,-300.0,0.0001898,2]
[394358811,1763488435025,-300.0,0.0001898,2]
[394358812,1763488437664,-300.0,0.0001898,2]
[394358813,1763488437695,-300.0,0.0001898,2]
[394358814,1763488437724,-300.0,0.0001898,2]
[394358815,1763488437752,-330.59,0.0001898,2]
[394358816,1763488437779,-330.59,0.00019254,2]
[394358817,1763488437808,-593.03,0.00019346,2]
[394358818,1763488437837,-330.59355585,0.00019528,2]
[394358819,1763488437865,-420.0,0.00019636,2]
[394358820,1763488437895,-467.29160627,0.0001965,2]
[394358821,1763488437922,-1575.81967576,0.00019731,2]
[394358822,1763488438160,-104.18032424,0.00019731,2]
[394358823,1763488438187,-557.06,0.00019821,2]
[394358824,1763488438218,-593.03,0.00019868,2]
[394358825,1763488438249,-177.0,0.00019917,2]
[394358826,1763488438276,-500.0,0.0001992,2]
[394358827,1763488438307,-1000.0,0.0001992,2]
[394358828,1763488438639,-1582.51617701,0.0001992,2]
[394358829,1763488444003,-5000.0,0.0001879,2]
[394358830,1763488444037,-0.01,0.00019919,2]
[394358831,1763488444132,-299.99,0.00019919,2]
[394358832,1763488444166,-9400.03,0.0001992,2]
[394358833,1763488657403,5000.0,0.00017802,2]
[394358834,1763488680839,5000.0,0.00017802,2]
[394358835,1763488703808,0.01,0.00017802,2]
[394358836,1763488703830,4999.99,0.00017802,2]
[394358837,1763488726758,5000.0,0.00017802,2]
[394358838,1763488736940,0.02,0.00017744,2]
[394358839,1763488736962,205.3887976,0.00017744,2]
[394358840,1763488742590,1162.60298092,0.00017797,2]
[394358841,1763488750449,5000.0,0.00017797,2]
[394358842,1763488766300,1743.90447138,0.00017797,2]
[394358843,1763488782864,1676.43693623,0.0001755,2]
[394358844,1763488822005,1850.0,0.00017817,30]
[394358845,1763488822030,8512.56770506,0.00017817,30]
[394358846,1763488932684,2216.30453369,0.00015826,2]
[394358847,1763488933009,2216.30453369,0.00016116,2]
[394358848,1763488933337,2216.30453369,0.0001627,2]
[394358849,1763488933651,1674.6594627,0.00016608,2]
[394358850,1763488933682,541.64507099,0.00016608,2]
[394358851,1763488934440,2216.30453369,0.00016837,2]
[394358852,1763488934759,2216.30453369,0.00017072,2]
[394358853,1763488935077,2216.30453369,0.00017446,2]
[394358854,1763488956520,369.0,0.0001755,2]
[394358855,1763488972261,5000.0,0.0001755,2]
[394358856,1763488988332,219.0,0.00017482,2]
[394358857,1763488995577,5000.0,0.0001755,2]
[394358858,1763489018512,5000.0,0.0001755,2]
[394358859,1763489042970,5000.0,0.0001755,2]
[394358860,1763489066779,3570.63447846,0.0001755,2]
[394358861,1763489090315,300.0,0.0001755,2]
[394358863,1763489200736,250.0,0.00016735,2]
[394358864,1763489343451,5000.0,0.00017732,2]
[394358865,1763489351395,5000.0,0.00017732,2]
[394358869,1763489359551,5000.0,0.00017797,2]
[394358870,1763489367435,0.01,0.00017797,2]
[394358871,1763489367458,4999.99,0.00017797,2]
[394358875,1763489372123,-185.51777587,0.00017807,2]
[394358876,1763489372699,131.73308244,0.00017752,2]
[394358877,1763489372725,38.77784997,0.00017752,2]
[394358878,1763489382520,5000.0,0.000178,2]
[394358879,1763489386897,-150.0,0.00017852,2]
[394358880,1763489386931,-185.51777587,0.00017896,2]
[394358881,1763489386966,-1609.1681187,0.00017896,2]
[394358882,1763489390320,5000.0,0.000178,2]
[394358883,1763489405633,0.01,0.000178,2]
[394358884,1763489405656,4999.99,0.000178,2]
[394358885,1763489413891,5000.0,0.000178,2]
[394358886,1763489429194,2400.0,0.000178,2]
[394358887,1763489429218,0.02,0.000178,2]
[394358888,1763489429240,2599.98,0.000178,2]
[394358912,1763489432501,-300.0,0.00017972,2]
[394358914,1763489432511,-163.60183529,0.00017972,2]
[394358917,1763489432522,-1036.39816471,0.00017972,2]
[394358919,1763489432531,-300.0,0.00017972,2]
[394358920,1763489432540,-300.0,0.00017972,2]
[394358922,1763489432549,-300.0,0.00017972,2]
[394358924,1763489432562,-500.0,0.00017973,2]
[394358926,1763489432571,-534.12852606,0.00017973,2]
[394358928,1763489432580,-500.0,0.00017973,2]
[394358930,1763489432589,-500.0,0.00017973,2]
[394358932,1763489432599,-335.35906938,0.00017973,2]
[394358934,1763489432608,-500.0,0.00017973,2]
[394358936,1763489432617,-502.24962682,0.00017973,2]
[394358938,1763489432626,-500.0,0.00017973,2]
[394358940,1763489432636,-1200.0,0.00017993,2]
[394358942,1763489432644,-176.87280454,0.00017994,2]
[394358945,1763489432653,-500.0,0.00017994,2]
[394358948,1763489432663,-545.73606107,0.00017994,2]
[394358950,1763489432672,-500.0,0.00017994,2]
[394358952,1763489432681,-185.10929445,0.00017994,2]
[394358955,1763489432690,-500.0,0.00017994,2]
[394358958,1763489432699,-500.0,0.00017994,2]
[394358960,1763489432707,-379.93478641,0.00017994,2]
[394358962,1763489432716,-500.0,0.00017994,2]
[394358965,1763489432725,-500.0,0.00017994,2]
[394358966,1763489432733,-175.84857609,0.00017994,2]
[394358968,1763489432742,-500.0,0.00017994,2]
[394358970,1763489432751,-500.0,0.00017994,2]
[394358972,1763489432760,-500.0,0.00017994,2]
[394358974,1763489432769,-500.0,0.00017994,2]
[394358976,1763489432778,-599.75225749,0.00017994,2]
[394358978,1763489432788,-999.0,0.00018239,2]
[394358979,1763489432797,-2577.1282713,0.00018239,2]
[394358981,1763489432806,-975.95179,0.00018239,2]
[394358983,1763489432815,-300.0,0.00018356,2]
[394358985,1763489432825,-300.0,0.00018356,2]
[394358987,1763489432834,-300.0,0.00018356,2]
[394358989,1763489432843,-23265.19342368,0.00018385,2]
[394358991,1763489432858,-13818.38909392,0.00018385,2]
[394358993,1763489432867,-1000.0,0.00018521,2]
[394358995,1763489432876,-684.03108846,0.00018521,2]
[394359206,1763489463414,800.0,0.000179,2]
[394359209,1763489512887,206.54782466,0.00017707,2]
[394359210,1763489567105,219.8148521,0.00017707,2]
[394359213,1763489631764,5000.0,0.00018151,2]
[394359214,1763489648655,4780.1951479,0.00018151,2]
[394359215,1763489648682,219.8048521,0.00018151,2]
[394359216,1763489657438,4791.60073333,0.00018151,2]
[394359218,1763489672905,500.0,0.00018151,2]
[394359219,1763489697900,379.73578382,0.00015777,2]
[394359223,1763489844943,880.05237482,0.00017894,2]
[394359224,1763489868347,440.21184136,0.000179,2]
[394359226,1763489934966,432.160869,0.00013699,2]
[394359227,1763489994069,2023.2744257,0.00017145,2]
[394359228,1763489995199,1123.0,0.00039784,20]
[394359229,1763490004525,330.33200573,0.0001755,2]
[394359230,1763490048926,8000.0,0.00039784,20]
[394359231,1763490065340,5000.0,0.0001755,2]
[394359232,1763490088176,2214.24269957,0.0001755,2]
[394359233,1763490088199,2785.75730043,0.0001755,2]
[394359234,1763490111750,5000.0,0.0001755,2]
[394359235,1763490134550,5000.0,0.0001755,2]
[394359236,1763490157465,5000.0,0.0001755,2]
[394359237,1763490180326,5000.0,0.0001755,2]
[394359238,1763490203797,5000.0,0.0001755,2]
[394359239,1763490226668,5000.0,0.0001755,2]
[394359240,1763490250440,5000.0,0.0001755,2]
[394359241,1763490262442,1000.0,0.00039785,20]
[394359242,1763490274328,5000.0,0.0001755,2]
[394359243,1763490296751,5000.0,0.0001755,2]
[394359244,1763490319091,4059.78815864,0.0001755,2]
[394359250,1763490476986,12131.0,0.00039785,20]
[394359253,1763490516317,104986.37048508,0.00039783,60]
[394359254,1763490523015,507.30324098,0.00039783,30]
[394359259,1763490595240,303.87974542,0.00015777,2]
[394359316,1763490631713,-150.0,0.00017853,2]
[394359318,1763490631722,-227.6388287,0.00017873,2]
[394359320,1763490631731,-300.0,0.0001797,2]
[394359322,1763490631740,-1200.0,0.0001797,2]
[394359323,1763490631750,-300.0,0.0001797,2]
[394359325,1763490631759,-300.0,0.0001797,2]
[394359327,1763490631768,-300.0,0.0001797,2]
[394359329,1763490631777,-819.6997357,0.00017971,2]
[394359374,1763490637630,-303.72545632,0.00017971,2]
[394359375,1763490637684,-76.57480798,0.00017971,2]
[394359376,1763490637693,-219.68912918,0.00017971,2]
[394359377,1763490637738,-683.22434254,0.00017971,2]
[394359378,1763490637750,-2706.74,0.00017971,2]
[394359391,1763490639815,-804.7719191,0.00017971,2]
[394359409,1763490643360,-28250.97554088,0.00017971,2]
[394359410,1763490643374,-5396.0609,0.00017971,2]
[394359427,1763490645987,-29519.56994,0.00017971,2]
[394359431,1763490646186,-3693.2904212,0.00017971,2]
[394359433,1763490646197,-861.50289935,0.00017971,2]
[394359435,1763490646208,-302.0,0.00017971,2]
[394359447,1763490684327,1000.0,0.00017098,2]
[394359456,1763490730100,161.9326928,0.00016987,2]
[394359458,1763490960600,211.9509835,0.00016982,2]
[394359459,1763491113741,-175.94440933,0.0001783,2]
[394359460,1763491113769,-150.0,0.00017855,2]
[394359461,1763491113798,-2869.04738742,0.0001788,2]
[394359462,1763491113826,-1200.0,0.00017959,2]
[394359463,1763491113854,-300.0,0.00017959,2]
[394359464,1763491119673,-653.99593013,0.0001796,2]
[394359465,1763491119705,-1177.19267424,0.0001796,2]
[394359466,1763491119736,-2090.69418945,0.0001796,2]
[394359467,1763491119766,-157.71998486,0.0001796,2]
[394359468,1763491119794,-283.89597275,0.0001796,2]
[394359469,1763491119828,-455.52802861,0.00017969,2]
[394359470,1763491125779,-1200.0,0.0001797,2]
[394359471,1763491125811,-501.12,0.0001797,2]
[394359472,1763491125843,-501.12,0.0001797,2]
[394359473,1763491125873,-501.12,0.0001797,2]
[394359474,1763491125903,-501.12,0.0001797,2]
[394359475,1763491125931,-501.12,0.0001797,2]
[394359476,1763491125957,-500.0,0.0001797,2]
[394359477,1763491130954,5000.0,0.0001779,2]
[394359478,1763491153703,5000.0,0.0001779,2]
[394359479,1763491176138,0.01,0.0001779,2]
[394359480,1763491176164,4999.99,0.0001779,2]
[394359481,1763491176781,206.54782466,0.0001773,2]
[394359482,1763491199027,5000.0,0.0001779,2]
[394359739,1763491222490,5000.0,0.0001779,2]
[394359947,1763491246322,5000.0,0.00017791,2]
[394359948,1763491269089,0.01,0.00017791,2]
[394359949,1763491269116,4999.99,0.00017791,2]
[394359950,1763491292124,5000.0,0.00017791,2]
[394359951,1763491303849,0.02,0.00017514,2]
[394359952,1763491303872,241.675,0.00017514,2]
[394359953,1763491314943,5000.0,0.00017791,2]
[394359965,1763491338957,4758.335,0.00017791,2]
[394360018,1763491401363,-241.665,0.00017791,2]
[394360019,1763491401390,-2510.41646401,0.0001786,2]
[394360026,1763491405628,5000.0,0.0001755,2]
[394360027,1763491410296,-2471.02616682,0.00017869,2]
[394360028,1763491410427,-10000.01,0.00017869,2]
[394360029,1763491413334,-10000.01,0.00017869,2]
[394360031,1763491420736,-834.79688896,0.00017869,2]
[394360032,1763491420748,-4165.20311104,0.00017869,2]
[394360033,1763491429083,5000.0,0.00017789,2]
[394360035,1763491451499,5000.0,0.0001755,2]
[394360039,1763491474386,5000.0,0.0001755,2]
[394360041,1763491489812,0.01,0.00017062,2]
[394360042,1763491489835,526.07874387,0.00017062,2]
[394360043,1763491491838,946.95973897,0.00017062,2]
[394360044,1763491495921,297.20117492,0.00015777,2]
[394360046,1763491496714,5000.0,0.0001755,2]
[394360049,1763491501864,169.8126169,8.435e-05,2]
[394360050,1763491505092,1950.29315922,0.0001755,2]
[394360052,1763491521331,5000.0,0.0001755,2]
[394360053,1763491537529,926.54378333,0.0001755,2]
[394360054,1763491546436,5000.0,0.0001755,2]
[394360055,1763491570241,5000.0,0.0001755,2]
[394360057,1763491593091,5000.0,0.0001755,2]
[394360059,1763491616936,0.01,0.0001755,2]
[394360060,1763491616971,4999.99,0.0001755,2]
[394360061,1763491621804,2251.29259707,0.0001764,2]
[394360062,1763491622302,3750.21259419,0.00017599,2]
[394360063,1763491624710,3998.50480874,0.0001773,2]
[394360064,1763491624732,729.66246936,0.0001773,2]
[394360065,1763491639962,5000.0,0.0001755,2]
[394360066,1763491647826,271.8327219,0.0001755,2]
[394360067,1763491663475,5000.0,0.0001755,2]
[394360068,1763491687401,5000.0,0.0001755,2]
[394360069,1763491689288,0.01,0.0001687,2]
[394360070,1763491689313,966.347157,0.0001687,2]
[394360071,1763491710266,5000.0,0.0001755,2]
[394360072,1763491726961,-720.0,0.00021454,20]
[394360073,1763491726992,-864.0,0.00023599,20]
[394360074,1763491727031,-1000.0,0.00025959,20]
[394360075,1763491727061,-1000.0,0.00028555,30]
[394360076,1763491727088,-244.0,0.00028555,30]
[394360077,1763491727119,-1000.0,0.0003141,30]
[394360078,1763491727149,-492.0,0.0003141,30]
[394360079,1763491727178,-155.50742916,0.000332,117]
[394360080,1763491727207,-1000.0,0.00034551,30]
[394360081,1763491727234,-791.0,0.00034551,30]
[394360082,1763491727262,-166.0,0.00035,120]
[394360083,1763491727290,-508.19,0.000354,30]
[394360084,1763491727319,-1000.0,0.00038007,30]
[394360085,1763491727348,-1000.0,0.00038007,30]
[394360086,1763491727380,-500.0,0.0003879,30]
[394360087,1763491727405,-151.0,0.00039,20]
[394360088,1763491727431,-508.19,0.000397,30]
[394360089,1763491727458,-2000.0,0.00039812,20]
[394360090,1763491727484,-193.65278794,0.000399,120]
[394360091,1763491727510,-241.696,0.00040635,58]
[394360092,1763491727539,-395.7021138,0.00040877,30]
[394360093,1763491727567,-395.7021138,0.00040877,30]
[394360094,1763491727594,-197.87,0.00041096,120]
[394360095,1763491727622,-10233.0,0.000414,120]
[394360096,1763491727656,-1000.0,0.00041807,90]
[394360097,1763491727687,-1000.0,0.00041807,90]
[394360098,1763491727715,-579.0,0.00041807,90]
[394360099,1763491727743,-156.779733,0.00041915,20]
[394360100,1763491727769,-160.0,0.00042,120]
[394360101,1763491727798,-156.779733,0.00042298,30]
[394360102,1763491727826,-828.3297738,0.00043082,30]
[394360103,1763491727852,-220.0,0.00043369,20]
[394360104,1763491727882,-169.3620103,0.00043694,30]
[394360105,1763491727910,-164.580273,0.00044091,20]
[394360106,1763491727937,-199.0,0.00044109,30]
[394360107,1763491727967,-156.779733,0.00044274,20]
[394360108,1763491727994,-156.779733,0.00044698,30]
[394360109,1763491728020,-505.32228524,0.0004523,60]
[394360110,1763491728049,-208.63138285,0.000454,120]
[394360111,1763491728077,-199.0,0.00045479,30]
[394360112,1763491728104,-500.0,0.00045504,60]
[394360113,1763491728132,-1000.0,0.00045988,90]
[394360114,1763491728161,-1000.0,0.00045988,90]
[394360115,1763491728188,-1000.0,0.00045988,90]
[394360116,1763491728215,-378.83,0.00046249,120]
[394360117,1763491728240,-569.78964401,0.00046358,60]
[394360118,1763491728266,-293.85068442,0.00046507,60]
[394360119,1763491728292,-500.0,0.00046593,60]
[394360120,1763491728318,-156.779733,0.00046632,20]
[394360121,1763491728344,-837.00259935,0.0004668,60]
[394360122,1763491728371,-507.37155566,0.00046729,60]
[394360123,1763491728399,-199.0,0.00046849,30]
[394360124,1763491728424,-156.779733,0.00046875,90]
[394360125,1763491728451,-1000.0,0.00047,120]
[394360126,1763491728475,-500.0,0.0004708,60]
[394360127,1763491728502,-156.779733,0.00047099,30]
[394360128,1763491728526,-180.57014505,0.00047401,34]
[394360129,1763491728553,-141895.9816,0.0004744,30]
[394360130,1763491728579,-501.76741586,0.0004751,60]
[394360131,1763491728605,-53959.30817381,0.000477,60]
[394360132,1763491728720,-156.779733,0.0004775,90]
[394360133,1763491728748,-763931.55414795,0.00047778,120]
[394360134,1763491733232,4033.662843,0.0001755,2]
[394360135,1763491733256,966.337157,0.0001755,2]
[394360136,1763491734237,-106737.17482856,0.00047778,120]
[394360137,1763491734268,-74698.32062502,0.00047778,120]
[394360138,1763491734298,-518.80935226,0.00048475,60]
[394360139,1763491734330,-156.779733,0.00048625,90]
[394360140,1763491734363,-7671.8,0.00048767,120]
[394360141,1763491734397,-15490.76,0.000489,30]
[394360142,1763491734429,-504.45919759,0.00048952,60]
[394360143,1763491734463,-573.52768817,0.00048984,60]
[394360144,1763491734496,-156.779733,0.0004899,20]
[394360145,1763491734527,-300005.20512389,0.00049,30]
[394360146,1763491734559,-1687.103708,0.0004914,21]
[394360147,1763491734591,-1000.0,0.0004916,21]
[394360148,1763491734622,-1000.0,0.0004918,21]
[394360149,1763491734653,-1184.049921,0.0004918,21]
[394360150,1763491734684,-1000.0,0.000492,21]
[394360151,1763491734715,-1000.0,0.000492,21]
[394360152,1763491734746,-361.0,0.000493,120]
[394360153,1763491734776,-500.0,0.00049315,120]
[394360154,1763491734809,-500.0,0.00049315,120]
[394360155,1763491734839,-500.0,0.00049315,120]
[394360156,1763491734872,-500.0,0.00049315,120]
[394360157,1763491734906,-500.0,0.00049315,120]
[394360158,1763491734937,-500.0,0.00049315,120]
[394360159,1763491734965,-500.0,0.00049315,120]
[394360160,1763491734995,-500.0,0.00049315,120]
[394360161,1763491735025,-500.0,0.00049315,120]
[394360162,1763491735067,-500.0,0.00049315,120]
[394360163,1763491735100,-500.0,0.00049315,120]
[394360164,1763491735130,-500.0,0.00049315,120]
[394360165,1763491735161,-500.0,0.00049315,120]
[394360166,1763491735191,-500.0,0.00049315,120]
[394360167,1763491735223,-500.34436733,0.00049315,120]
[394360168,1763491735255,-500.0,0.00049315,120]
[394360169,1763491735285,-500.0,0.00049315,120]
[394360170,1763491735317,-1143.69,0.00049315,120]
[394360171,1763491735347,-541.48,0.00049315,120]
[394360172,1763491735379,-500.0,0.00049315,120]
[394360173,1763491735409,-500.0,0.00049315,120]
[394360174,1763491735439,-621.33,0.00049315,30]
[394360175,1763491735470,-500.0,0.00049315,120]
[394360176,1763491735501,-500.0,0.00049315,120]
[394360177,1763491735532,-500.0,0.00049315,120]
[394360178,1763491735563,-500.0,0.00049315,120]
[394360179,1763491735596,-500.0,0.00049315,120]
[394360180,1763491735630,-1164.5,0.00049315,120]
[394360181,1763491735662,-10753.53,0.00049315,60]
[394360182,1763491735692,-500.0,0.00049315,120]
[394360183,1763491735721,-500.0,0.00049315,120]
[394360184,1763491735751,-500.0,0.00049315,120]
[394360185,1763491735780,-500.0,0.00049315,120]
[394360186,1763491735808,-500.0,0.00049315,120]
[394360187,1763491735836,-500.0,0.00049315,120]
[394360188,1763491735863,-500.0,0.00049315,120]
[394360189,1763491735891,-646.78,0.00049315,120]
[394360190,1763491735920,-500.0,0.00049315,120]
[394360191,1763491736050,-5110.2,0.00049315,120]
[394360192,1763491736084,-500.0,0.00049315,120]
[394360193,1763491736111,-834.93,0.00049315,120]
[394360194,1763491736137,-500.0,0.00049315,120]
[394360195,1763491736165,-500.0,0.00049315,120]
[394360196,1763491736191,-423.25464821,0.00049315,120]
[394360197,1763491736217,-500.0,0.00049315,120]
[394360198,1763491736242,-500.0,0.00049315,120]
[394360199,1763491736270,-2659.82,0.00049315,120]
[394360200,1763491736296,-784.72,0.00049315,120]
[394360201,1763491736321,-516.43823519,0.00049315,120]
[394360202,1763491736347,-360046.16255721,0.000494,120]
[394360203,1763491736378,-82507.05028157,0.0004944,30]
[394360204,1763491738916,-447400.79141843,0.0004944,30]
[394360205,1763491738945,-156.779733,0.000495,30]
[394360206,1763491738972,-156.779733,0.000495,90]
[394360207,1763491738998,-500.0,0.00049589,120]
[394360208,1763491739024,-500.0,0.00049589,120]
[394360209,1763491739051,-500.0,0.00049589,120]
[394360210,1763491739077,-508.98378064,0.00049589,120]
[394360211,1763491739104,-500.0,0.00049589,120]
[394360212,1763491739129,-500.0,0.00049589,120]
[394360213,1763491739155,-500.0,0.00049589,120]
[394360214,1763491739180,-521.81109188,0.00049589,120]
[394360215,1763491739205,-500.0,0.00049589,120]
[394360216,1763491739229,-500.0,0.00049589,120]
[394360217,1763491739254,-500.0,0.00049589,120]
[394360218,1763491739278,-292.57858245,0.00049589,120]
[394360219,1763491739306,-500.0,0.00049589,120]
[394360220,1763491739333,-500.0,0.00049589,120]
[394360221,1763491739359,-500.0,0.00049589,120]
[394360222,1763491739389,-1143.69,0.00049589,120]
[394360223,1763491739418,-541.48,0.00049589,120]
[394360224,1763491739452,-500.0,0.00049589,120]
[394360225,1763491739477,-500.0,0.00049589,120]
[394360226,1763491739504,-621.33,0.00049589,30]
[394360227,1763491739531,-500.0,0.00049589,120]
[394360228,1763491739556,-500.0,0.00049589,120]
[394360229,1763491739582,-500.0,0.00049589,120]
[394360230,1763491739609,-500.0,0.00049589,120]
[394360231,1763491739636,-10753.53,0.00049589,60]
[394360232,1763491739664,-500.0,0.00049589,120]
[394360233,1763491739691,-500.0,0.00049589,120]
[394360234,1763491739718,-500.0,0.00049589,120]
[394360235,1763491739744,-502.7709872,0.00049589,120]
[394360236,1763491739773,-500.0,0.00049589,120]
[394360237,1763491739800,-500.0,0.00049589,120]
[394360238,1763491739828,-500.0,0.00049589,120]
[394360239,1763491739856,-646.78,0.00049589,120]
[394360240,1763491739883,-500.0,0.00049589,120]
[394360241,1763491739911,-5110.2,0.00049589,120]
[394360242,1763491739937,-181.68660349,0.00049589,120]
[394360243,1763491739962,-834.93,0.00049589,120]
[394360244,1763491739989,-500.0,0.00049589,120]
[394360245,1763491740015,-500.0,0.00049589,120]
[394360246,1763491740046,-618.70622354,0.00049589,120]
[394360247,1763491740073,-500.0,0.00049589,120]
[394360248,1763491740104,-2659.82,0.00049589,120]
[394360249,1763491740132,-784.72,0.00049589,120]
[394360250,1763491740161,-500.0,0.00049863,120]
[394360251,1763491740189,-500.0,0.00049863,120]
[394360252,1763491740216,-500.0,0.00049863,120]
[394360253,1763491740243,-500.0,0.00049863,120]
[394360254,1763491740271,-500.0,0.00049863,120]
[394360255,1763491740300,-500.0,0.00049863,120]
[394360256,1763491740409,-500.0,0.00049863,120]
[394360257,1763491740438,-500.0,0.00049863,120]
[394360258,1763491740465,-500.0,0.00049863,120]
[394360259,1763491740493,-549.42006145,0.00049863,120]
[394360260,1763491740519,-500.0,0.00049863,120]
[394360261,1763491740547,-500.0,0.00049863,120]
[394360262,1763491740577,-1143.69,0.00049863,120]
[394360263,1763491740605,-541.48,0.00049863,120]
[394360264,1763491740638,-500.0,0.00049863,120]
[394360265,1763491740667,-500.0,0.00049863,120]
[394360266,1763491740694,-621.33,0.00049863,30]
[394360267,1763491740721,-500.0,0.00049863,120]
[394360268,1763491740747,-462.37852102,0.00049863,120]
[394360269,1763491740774,-500.0,0.00049863,120]
[394360270,1763491740803,-500.0,0.00049863,120]
[394360271,1763491740830,-10753.53,0.00049863,60]
[394360272,1763491740855,-500.0,0.00049863,120]
[394360273,1763491740882,-500.0,0.00049863,120]
[394360274,1763491740909,-500.0,0.00049863,120]
[394360275,1763491740935,-329.88019403,0.00049863,120]
[394360276,1763491740961,-519.08305987,0.00049863,120]
[394360277,1763491740987,-646.78,0.00049863,120]
[394360278,1763491741013,-233.242363,0.00049863,120]
[394360279,1763491741040,-5110.2,0.00049863,120]
[394360280,1763491741066,-834.93,0.00049863,120]
[394360281,1763491741092,-500.0,0.00049863,120]
[394360282,1763491741117,-500.0,0.00049863,120]
[394360283,1763491741144,-500.0,0.00049863,120]
[394360284,1763491741173,-2659.82,0.00049863,120]
[394360285,1763491741200,-784.72,0.00049863,120]
[394360286,1763491741225,-341.05292039,0.00049999,120]
[394360287,1763491741251,-451.65721002,0.00049999,120]
[394360288,1763491741276,-500.0,0.00049999,31]
[394360289,1763491741303,-500.0,0.00049999,120]
[394360290,1763491741329,-500.0,0.00049999,120]
[394360291,1763491741354,-207.38337887,0.00049999,120]
[394360292,1763491741384,-475.91532708,0.00049999,31]
[394360293,1763491741412,-500.0,0.00049999,120]
[394360294,1763491741436,-500.0,0.00049999,120]
[394360295,1763491741462,-500.0,0.00049999,120]
[394360296,1763491741492,-500.0,0.00049999,120]
[394360297,1763491741525,-500.0,0.00049999,31]
[394360298,1763491741558,-500.0,0.00049999,120]
[394360299,1763491741587,-500.0,0.00049999,120]
[394360300,1763491741620,-500.0,0.00049999,31]
[394360301,1763491741652,-500.0,0.00049999,120]
[394360302,1763491741685,-500.0,0.00049999,120]
[394360303,1763491741721,-189.27133003,0.00049999,120]
[394360304,1763491741762,-500.0,0.00049999,120]
[394360305,1763491741798,-502.0,0.0005,30]
[394360306,1763491741830,-1998.28884961,0.0005,120]
[394360307,1763491741863,-500.0,0.00050136,120]
[394360308,1763491741896,-500.0,0.00050136,120]
[394360309,1763491741927,-500.0,0.00050136,120]
[394360310,1763491741959,-500.0,0.00050136,120]
[394360311,1763491741988,-500.0,0.00050136,120]
[394360312,1763491742020,-500.0,0.00050136,120]
[394360313,1763491742053,-500.0,0.00050136,120]
[394360314,1763491742087,-500.0,0.00050136,120]
[394360315,1763491742118,-500.0,0.00050136,120]